bitfinex/quotes_SOLUSD_20241122
["timestamp","ask_amount","ask_price","bid_price","bid_amount"]
[1732266874593,15.3876,258.35,258.19,20.0]
[1732266874784,16.0554,258.32,258.19,20.0]
[1732266875286,16.0554,258.32,258.18,7.38151008]
[1732266875598,16.0554,258.32,258.13,5.06006387]
[1732266876489,16.0554,258.32,258.14,23.776884]
[1732266876683,16.0554,258.32,258.17,20.0]
[1732266877780,16.1587,258.3,258.14,23.776884]
[1732266878703,16.1587,258.3,258.13,7.34240092]
[1732266878996,16.1587,258.3,258.13,0.58087757]
[1732266879298,16.1587,258.3,258.13,4.29859608]
[1732266879699,16.1587,258.3,258.13,24.29859608]
[1732266880200,16.1587,258.3,258.14,20.0]
[1732266880681,16.1587,258.3,258.13,24.29859608]
[1732266880880,16.1587,258.3,258.13,20.58087757]
[1732266881484,6.4562,258.29,258.13,20.58087757]
[1732266881693,6.9562,258.29,258.13,20.58087757]
[1732266883185,6.9562,258.29,258.28,15.0]
[1732266883611,6.9562,258.29,258.28,35.0]
[1732266885609,6.4562,258.29,258.28,35.0]
[1732266888686,6.4562,258.29,258.28,30.4260948]
[1732266892188,16.1587,258.3,258.29,20.0]
[1732266893516,16.1587,258.3,258.29,19.5]
[1732266898919,6.1323,258.36,258.29,19.5]
[1732266903405,23.776884,258.35,258.29,19.5]
[1732266904116,24.276884,258.35,258.29,19.5]
[1732266905422,16.0196,258.34,258.28,10.4260948]
[1732266906523,24.276884,258.33,258.28,10.4260948]
[1732266909824,0.5,258.32,258.28,10.4260948]
[1732266911707,23.776884,258.3,258.28,10.4260948]
[1732266911909,23.776884,258.27,258.15,7.33640913]
[1732266912116,24.276884,258.27,258.16,20.0]
[1732266912627,24.276884,258.27,258.02,32.77942474]
[1732266912827,24.276884,258.27,258.08,3.48494629]
[1732266913023,24.276884,258.27,258.08,8.11513223]
[1732266913335,24.276884,258.27,258.09,3.48494629]
[1732266914012,24.276884,258.27,258.09,28.11513223]
[1732266914334,24.276884,258.27,258.1,24.63018594]
[1732266914512,24.276884,258.27,258.1,28.11513223]
[1732266914924,24.276884,258.27,258.11,3.48494629]
[1732266915126,23.776884,258.27,258.11,23.48494629]
[1732266915811,16.6714,258.28,258.12,4.63018594]
[1732266916134,16.6714,258.28,258.13,23.48494629]
[1732266916309,16.6714,258.28,258.13,28.11513223]
[1732266917019,23.776884,258.27,258.13,3.48494629]
[1732266917325,16.6714,258.28,258.13,3.48494629]
[1732266919529,16.6714,258.28,258.14,20.0]
[1732266919931,16.6714,258.28,258.06,3.0636491]
[1732266920112,16.6714,258.28,258.1,20.0]
[1732266920317,23.776884,258.27,258.1,20.0]
[1732266922015,16.1714,258.28,258.1,20.0]
[1732266923124,16.1714,258.28,258.12,20.0]
[1732266923324,16.1714,258.28,258.1,20.0]
[1732266923532,16.1714,258.28,258.12,20.0]
[1732266925236,16.1714,258.28,258.15,23.776884]
[1732266925419,16.1714,258.28,258.16,20.0]
[1732266925614,6.6316,258.31,258.16,20.0]
[1732266926140,6.6316,258.31,258.17,23.776884]
[1732266926435,16.1148,258.34,258.2,20.0]
[1732266927140,16.1148,258.34,258.22,20.0]
[1732266929136,16.1148,258.34,258.21,20.0]
[1732266929936,16.1148,258.34,258.21,27.43889648]
[1732266933848,16.1148,258.34,258.23,20.0]
[1732266935036,16.1148,258.34,258.21,20.0]
[1732266938028,16.1148,258.34,258.23,20.0]
[1732266939144,16.1148,258.34,258.21,20.0]
[1732266941840,6.0362,258.37,258.25,20.0]
[1732266942949,6.0668,258.45,258.31,20.0]
[1732266943652,6.0668,258.45,258.26,3.22818982]
[1732266944848,23.776884,258.44,258.27,20.0]
[1732266945043,6.0668,258.45,258.28,23.776884]
[1732266945242,6.0668,258.45,258.31,20.0]
[1732266945942,6.0668,258.45,258.28,3.96883518]
[1732266946251,6.0668,258.45,258.3,20.0]
[1732266946450,6.0668,258.45,258.33,23.776884]
[1732266946639,6.0668,258.45,258.34,20.0]
[1732266947027,15.7118,258.47,258.35,23.776884]
[1732266947233,23.85392562,258.69,258.35,23.776884]
[1732266947234,6.1432,258.53,258.4,20.0]
[1732266947446,6.1432,258.53,258.42,20.0]
[1732266947747,16.5059,258.54,258.44,20.0]
[1732266948147,16.5059,258.54,258.38,20.0]
[1732266948340,16.5059,258.54,258.39,23.776884]
[1732266948534,16.5059,258.54,258.42,20.0]
[1732266949142,16.5059,258.54,258.41,23.776884]
[1732266949337,16.5059,258.54,258.42,20.0]
[1732266950152,16.5059,258.54,258.39,20.0]
[1732266952956,15.7036735,258.54,258.39,20.0]
[1732266953759,15.7036735,258.54,258.41,20.0]
[1732266954534,15.7036735,258.54,258.42,23.776884]
[1732266954740,15.7036735,258.54,258.43,20.0]
[1732266955362,15.7036735,258.54,258.39,20.0]
[1732266955765,15.7036735,258.54,258.37,3.22818982]
[1732266955941,15.7036735,258.54,258.38,23.96883518]
[1732266956344,15.7036735,258.54,258.39,23.776884]
[1732266956539,15.7036735,258.54,258.41,23.776884]
[1732266956863,15.7036735,258.54,258.43,22.653341]
[1732266957640,15.7036735,258.54,258.41,3.96883518]
[1732266958852,6.0749,258.59,258.43,20.0]
[1732266959057,6.0749,258.59,258.46,23.776884]
[1732266959245,6.0749,258.59,258.47,20.0]
[1732266959444,6.0749,258.59,258.48,23.776884]
[1732266959742,6.0749,258.59,258.49,20.0]
[1732266962464,6.0749,258.59,258.5,23.776884]
[1732266962669,6.0749,258.59,258.51,20.0]
[1732266962851,15.1362,258.61,258.51,20.0]
[1732266963756,15.1362,258.61,258.53,20.0]
[1732266964160,16.3691,258.69,258.55,20.0]
[1732266964747,16.3691,258.69,258.5,20.0]
[1732266964967,16.3691,258.69,258.46,20.0]
[1732266965350,23.776884,258.68,258.46,20.0]
[1732266965856,6.3947,258.67,258.46,20.0]
[1732266966067,23.776884,258.66,258.48,20.0]
[1732266967071,6.3947,258.67,258.46,4.49172407]
[1732266967072,23.776884,258.64,258.46,4.49172407]
[1732266968270,23.776884,258.64,258.46,24.49172407]
[1732266968674,23.776884,258.64,258.47,4.49172407]
[1732266969055,23.776884,258.64,258.47,24.49172407]
[1732266970250,23.776884,258.64,258.47,4.49172407]
[1732266970860,16.509,258.65,258.47,4.49172407]
[1732266971054,16.509,258.65,258.49,20.0]
[1732266971761,16.509,258.65,258.49,24.49172407]
[1732266972377,16.509,258.65,258.53,20.0]
[1732266974270,16.509,258.65,258.5,4.49172407]
[1732266976056,16.509,258.65,258.51,20.0]
[1732266976678,23.776884,258.64,258.5,4.49172407]
[1732266977051,23.776884,258.62,258.5,4.49172407]
[1732266977247,23.776884,258.6,258.42,5.3408526]
[1732266977455,23.776884,258.6,258.45,4.49172407]
[1732266980455,23.776884,258.6,258.17,3.24]
[1732266980456,15.168,258.5,258.17,3.24]
[1732266980648,21.7177,258.45,258.17,15.454426]
[1732266980856,23.776884,258.42,258.17,22.78351966]
[1732266981161,15.168,258.39,258.17,7.32909366]
[1732266981359,23.776884,258.38,258.09,21.830529]
[1732266981564,23.776884,258.38,258.09,14.48216831]
[1732266982163,23.776884,258.38,258.1,4.51138038]
[1732266982363,23.776884,258.38,258.11,0.58077074]
[1732266983188,23.776884,258.38,258.12,23.776884]
[1732266983874,15.168,258.39,258.13,3.08080028]
[1732266984261,15.168,258.39,258.14,20.0]
[1732266984570,15.168,258.39,258.15,0.58065859]
[1732266985077,15.168,258.39,258.19,20.0]
[1732266985274,15.168,258.39,258.2,23.776884]
[1732266985451,15.168,258.39,258.21,20.0]
[1732266985659,23.776884,258.38,258.21,20.0]
[1732266988382,15.168,258.39,258.23,20.0]
[1732266988768,23.776884,258.38,258.23,20.0]
[1732266989078,23.776884,258.38,258.13,0.58071505]
[1732266989079,23.776884,258.38,258.16,20.0]
[1732266989278,23.776884,258.38,258.17,23.776884]
[1732266989579,23.776884,258.38,258.18,20.0]
[1732266989767,23.776884,258.38,258.2,20.0]
[1732266990453,15.168,258.39,258.21,23.776884]
[1732266990656,15.168,258.39,258.23,23.776884]
[1732266990871,15.168,258.39,258.24,20.0]
[1732266991577,15.168,258.39,258.26,20.0]
[1732266991881,15.168,258.39,258.27,23.776884]
[1732266992079,15.6005,258.46,258.3,20.0]
[1732266992386,15.6005,258.46,258.34,20.0]
[1732266992966,15.6005,258.46,258.24,23.776884]
[1732266993155,15.6005,258.46,258.27,20.0]
[1732266993479,15.6005,258.46,258.28,23.776884]
[1732266993684,15.6005,258.46,258.3,23.776884]
[1732266993900,15.6005,258.46,258.32,23.776884]
[1732266994185,15.6005,258.46,258.33,20.0]
[1732266995080,15.6005,258.46,258.37,20.0]
[1732266995379,15.6005,258.46,258.35,20.0]
[1732266995978,15.6005,258.46,258.25,23.776884]
[1732266996181,15.6005,258.46,258.27,23.776884]
[1732266996582,15.6005,258.46,258.29,23.776884]
[1732266996762,15.6005,258.46,258.31,23.776884]
[1732266996961,15.6005,258.46,258.32,20.0]
[1732266999875,15.6005,258.46,258.35,23.776884]
[1732267000096,15.6005,258.46,258.36,20.0]
[1732267000383,15.6005,258.46,258.38,20.0]
[1732267001374,6.3124,258.47,258.4,20.0]
[1732267001763,15.9091,258.52,258.4,20.0]
[1732267001968,15.9091,258.52,258.42,20.0]
[1732267004469,15.9091,258.52,258.43,0.49301801]
[1732267004687,15.9091,258.52,258.42,20.0]
[1732267004988,15.9091,258.52,258.41,20.0]
[1732267006290,23.776884,258.51,258.29,22.0015]
[1732267006491,15.9091,258.52,258.29,22.0015]
[1732267007380,15.9091,258.52,258.3,0.5803942]
[1732267007586,15.9091,258.52,258.3,3.54716597]
[1732267007974,15.9091,258.52,258.31,23.776884]
[1732267008378,15.9091,258.52,258.32,20.0]
[1732267008678,15.9091,258.52,258.34,20.0]
[1732267008876,15.9091,258.52,258.35,23.776884]
[1732267009074,15.9091,258.52,258.38,20.0]
[1732267009789,15.9091,258.52,258.36,20.0]
[1732267013592,15.9091,258.52,258.36,27.25268672]
[1732267015488,15.9091,258.52,258.38,20.0]
[1732267016293,15.9091,258.52,258.36,7.25268672]
[1732267016596,15.9091,258.52,258.3,23.776884]
[1732267016788,23.776884,258.51,258.3,23.776884]
[1732267017497,23.776884,258.51,258.33,20.0]
[1732267018175,23.776884,258.51,258.3,23.776884]
[1732267018176,23.776884,258.51,258.32,23.776884]
[1732267018370,23.776884,258.51,258.33,20.0]
[1732267019876,22.4483,258.5,258.3,20.58044848]
[1732267020078,22.4483,258.5,258.3,20.0]
[1732267021288,22.4483,258.5,258.32,20.0]
[1732267022897,23.776884,258.47,258.3,20.0]
[1732267023208,23.776884,258.47,258.24,43.776884]
[1732267023492,16.4689,258.48,258.28,23.776884]
[1732267023699,16.4689,258.48,258.31,20.0]
[1732267023884,16.4689,258.48,258.33,20.0]
[1732267026500,5.36832049,258.48,258.39,20.0]
[1732267028290,5.36832049,258.48,258.34,3.93570379]
[1732267028488,5.36832049,258.48,258.36,20.0]
[1732267028799,5.36832049,258.48,258.33,7.35987066]
[1732267029094,5.36832049,258.48,258.27,3.93570379]
[1732267029999,5.36832049,258.48,258.31,23.776884]
[1732267030205,5.36832049,258.48,258.32,20.0]
[1732267030403,5.36832049,258.48,258.33,23.776884]
[1732267030586,5.36832049,258.48,258.36,20.0]
[1732267030787,5.36832049,258.48,258.37,23.776884]
[1732267030991,5.36832049,258.48,258.38,20.0]
[1732267031904,5.36832049,258.48,258.41,23.776884]
[1732267032109,5.36832049,258.48,258.42,20.0]
[1732267032293,6.6131,258.5,258.42,20.0]
[1732267033480,16.2034,258.54,258.42,20.0]
[1732267036101,23.776884,258.53,258.3,15.3192]
[1732267036302,23.776884,258.53,258.3,22.75779205]
[1732267036498,23.776884,258.51,258.3,22.75779205]
[1732267036682,15.613,258.5,258.3,7.43859205]
[1732267036888,15.613,258.5,258.25,3.862]
[1732267036889,23.776884,258.49,258.25,3.862]
[1732267037504,23.776884,258.47,258.25,3.862]
[1732267037702,23.776884,258.45,258.24,3.862]
[1732267038207,23.776884,258.43,258.24,3.862]
[1732267038994,23.776884,258.41,258.24,3.862]
[1732267039197,23.776884,258.39,258.24,3.862]
[1732267039895,23.776884,258.39,258.23,7.32462726]
[1732267040088,23.776884,258.39,258.18,20.0]
[1732267040505,23.776884,258.39,258.19,3.93570379]
[1732267040806,6.1721,258.4,258.2,0.58068603]
[1732267041009,6.1721,258.4,258.21,3.93570379]
[1732267041200,6.1721,258.4,258.23,20.0]
[1732267041402,6.1721,258.4,258.25,20.0]
[1732267042394,6.1721,258.4,258.27,20.0]
[1732267042595,6.1721,258.4,258.29,20.0]
[1732267042795,6.1721,258.4,258.31,20.0]
[1732267042999,6.1721,258.4,258.33,20.0]
[1732267043895,16.1633,258.42,258.35,20.0]
[1732267044101,6.4146,258.46,258.36,23.776884]
[1732267044320,6.4146,258.46,258.37,20.0]
[1732267045297,6.4146,258.46,258.28,20.0]
[1732267045515,6.4146,258.46,258.31,23.776884]
[1732267045715,15.2184,258.5,258.31,23.776884]
[1732267045716,15.2184,258.5,258.34,20.0]
[1732267045910,15.2184,258.5,258.36,20.0]
[1732267046215,23.776884,258.68,258.4,2.49999999]
[1732267046414,7.17741205,258.74,258.41,2.5]
[1732267046622,15.2184,258.68,258.44,2.5]
[1732267046799,3.8648,258.74,258.44,2.5]
[1732267047219,19.0832,258.74,258.44,2.5]
[1732267048023,23.776884,258.73,258.44,2.5]
[1732267048208,23.776884,258.71,258.4,2.5]
[1732267049212,20.3131,258.67,258.4,2.5]
[1732267049517,20.3131,258.65,258.4,2.5]
[1732267049737,6.5748,258.62,258.4,2.5]
[1732267049895,23.776884,258.61,258.4,2.5]
[1732267050095,23.776884,258.61,258.36,27.41783551]
[1732267050096,23.776884,258.58,258.36,2.49999999]
[1732267050300,23.776884,258.58,258.35,2.5]
[1732267050301,23.776884,258.58,258.37,4.99999999]
[1732267050502,23.776884,258.58,258.34,4.99999999]
[1732267050702,23.776884,258.58,258.36,2.5]
[1732267051102,37.515184,258.57,258.34,2.5]
[1732267051629,37.515184,258.57,258.37,2.5]
[1732267055021,37.515184,258.57,258.36,2.49999999]
[1732267055205,37.515184,258.57,258.37,2.5]
[1732267055407,37.515184,258.57,258.38,2.5]
[1732267056636,37.515184,258.57,258.36,2.49999999]
[1732267056637,37.515184,258.57,258.36,2.5]
[1732267056928,37.515184,258.57,258.38,4.99999999]
[1732267057831,37.515184,258.57,258.36,2.5]
[1732267058041,37.515184,258.57,258.38,2.5]
[1732267058243,37.515184,258.57,258.34,2.5]
[1732267059826,37.515184,258.57,258.35,20.0]
[1732267060513,37.515184,258.57,258.34,2.5]
[1732267061214,37.515184,258.57,258.32,22.49999999]
[1732267061410,37.515184,258.57,258.34,2.5]
[1732267062022,37.515184,258.57,258.32,22.49999999]
[1732267062226,37.515184,258.57,258.33,2.5]
[1732267063154,37.515184,258.57,258.34,2.49999999]
[1732267064218,37.515184,258.57,258.34,4.99999999]
[1732267066824,13.7383,258.57,258.34,4.99999999]
[1732267067028,13.7383,258.57,258.36,2.5]
[1732267067732,13.7383,258.57,258.35,2.49999999]
[1732267067934,13.7383,258.57,258.36,2.5]
[1732267068750,23.776884,258.56,258.36,2.5]
[1732267069833,23.776884,258.56,258.37,20.0]
[1732267070854,23.776884,258.56,258.34,2.5]
[1732267072557,23.776884,258.56,258.36,2.5]
[1732267073042,23.776884,258.56,258.34,2.5]
[1732267073451,23.776884,258.56,258.36,2.5]
[1732267073663,23.776884,258.56,258.34,2.5]
[1732267077236,23.776884,258.54,258.34,2.5]
[1732267077442,23.776884,258.56,258.34,2.5]
[1732267077652,23.776884,258.54,258.34,2.5]
[1732267077955,23.776884,258.56,258.34,2.5]
[1732267078248,23.776884,258.54,258.34,2.5]
[1732267078443,23.776884,258.54,258.32,20.0]
[1732267078444,23.776884,258.56,258.32,22.5]
[1732267078743,2.84549882,258.55,258.32,22.5]
[1732267078953,23.776884,258.56,258.34,2.5]
[1732267079153,23.776884,258.54,258.34,2.5]
[1732267079540,23.776884,258.56,258.33,2.5]
[1732267079737,23.776884,258.54,258.33,2.5]
[1732267079939,23.776884,258.56,258.33,2.5]
[1732267080146,23.776884,258.54,258.33,2.5]
[1732267080445,23.776884,258.56,258.33,2.5]
[1732267080631,23.776884,258.54,258.33,2.5]
[1732267080830,23.776884,258.56,258.33,2.5]
[1732267081155,23.776884,258.54,258.32,20.0]
[1732267081541,23.776884,258.56,258.32,20.0]
[1732267081738,23.776884,258.54,258.33,2.5]
[1732267081947,23.776884,258.56,258.33,2.5]
[1732267082144,23.776884,258.54,258.32,20.0]
[1732267082349,9.50590351,258.53,258.29,16.2683]
[1732267082654,23.776884,258.51,258.29,23.52486557]
[1732267082963,23.776884,258.51,258.3,2.5]
[1732267083452,23.776884,258.51,258.29,23.52486557]
[1732267083755,23.776884,258.51,258.3,20.0]
[1732267084553,23.776884,258.51,258.3,22.5]
[1732267084942,23.776884,258.51,258.3,20.0]
[1732267085760,23.776884,258.51,258.3,22.5]
[1732267086135,23.776884,258.51,258.3,20.0]
[1732267086765,23.776884,258.51,258.23,3.862]
[1732267086766,23.776884,258.49,258.26,2.49999999]
[1732267087064,13.7383,258.52,258.25,15.6473]
[1732267087065,23.776884,258.47,258.25,15.6473]
[1732267087752,23.776884,258.45,258.25,15.6473]
[1732267087953,23.776884,258.47,258.26,20.0]
[1732267088461,23.776884,258.47,258.25,15.6473]
[1732267089967,23.776884,258.47,258.26,20.0]
[1732267090164,23.776884,258.47,258.23,13.5656139]
[1732267090165,35.356884,258.45,258.17,15.5953]
[1732267090340,23.776884,258.43,258.17,15.5953]
[1732267090665,23.776884,258.41,258.17,15.5953]
[1732267090965,35.195,258.46,258.17,15.5953]
[1732267090966,23.776884,258.39,258.17,15.5953]
[1732267091267,23.776884,258.37,258.17,15.5953]
[1732267091437,23.776884,258.39,258.17,15.5953]
[1732267092449,23.776884,258.39,258.18,20.0]
[1732267095564,20.0264,258.4,258.19,2.49999999]
[1732267095745,20.0264,258.4,258.21,2.5]
[1732267095945,20.0264,258.4,258.21,4.99999999]
[1732267097070,23.776884,258.39,258.21,4.99999999]
[1732267097558,23.776884,258.39,258.21,2.5]
[1732267100367,23.776884,258.39,258.24,2.5]
[1732267100559,13.7383,258.46,258.28,20.0]
[1732267101848,23.776884,258.45,258.28,20.0]
[1732267102464,23.776884,258.45,258.29,2.5]
[1732267102661,13.7383,258.51,258.29,2.5]
[1732267103456,13.7383,258.51,258.31,2.5]
[1732267103955,13.7383,258.51,258.33,2.5]
[1732267105573,23.776884,258.5,258.33,2.5]
[1732267105755,23.776884,258.5,258.35,20.0]
[1732267107769,23.776884,258.5,258.35,22.5]
[1732267108775,23.776884,258.5,258.35,20.0]
[1732267109075,23.776884,258.5,258.34,22.9623]
[1732267109448,23.776884,258.52,258.34,22.9623]
[1732267109761,23.776884,258.39,258.28,21.4431]
[1732267110583,23.776884,258.41,258.28,21.4431]
[1732267111286,23.776884,258.41,258.29,20.0]
[1732267114784,23.776884,258.41,258.3,3.862]
[1732267115878,23.776884,258.43,258.3,3.862]
[1732267116177,9.70230064,258.42,258.3,3.862]
[1732267116585,23.776884,258.41,258.3,3.862]
[1732267118885,7.73220215,258.53,258.3,4.99999999]
[1732267119054,9.70230064,258.47,258.3,12.83367374]
[1732267119377,9.70230064,258.47,258.33,16.2584]
[1732267119580,9.70230064,258.47,258.34,20.0]
[1732267120160,13.7383,258.56,258.36,22.49999999]
[1732267120364,9.70230064,258.5,258.36,22.49999999]
[1732267120566,9.70230064,258.5,258.36,20.0]
[1732267120773,9.70230064,258.5,258.36,22.49999999]
[1732267121473,23.776884,258.49,258.36,20.0]
[1732267122179,9.70230064,258.48,258.36,20.0]
[1732267122555,23.776884,258.47,258.36,20.0]
[1732267123365,23.776884,258.45,258.36,20.0]
[1732267127488,23.776884,258.47,258.38,20.0]
[1732267128881,23.776884,258.48,258.38,20.0]
[1732267130888,23.776884,258.46,258.38,20.0]
[1732267133695,23.776884,258.47,258.38,20.0]
[1732267135089,23.776884,258.49,258.38,20.0]
[1732267135276,23.776884,258.49,258.38,22.49999999]
[1732267135478,9.70230064,258.53,258.4,2.49999999]
[1732267135691,9.70230064,258.53,258.42,24.99999999]
[1732267135984,9.70230064,258.56,258.44,20.0]
[1732267136385,13.7383,258.68,258.47,2.49999999]
[1732267136592,2.83754298,258.67,258.47,2.49999999]
[1732267136903,9.70230064,258.6,258.47,2.49999999]
[1732267137994,23.776884,258.57,258.46,20.0]
[1732267138183,23.776884,258.57,258.47,2.49999999]
[1732267138493,23.776884,258.55,258.44,22.5]
[1732267139493,23.776884,258.55,258.44,20.0]
[1732267139806,23.776884,258.53,258.43,25.47987829]
[1732267140380,23.776884,258.53,258.43,17.68949999]
[1732267141600,23.776884,258.53,258.44,20.0]
[1732267142105,13.7383,258.68,258.46,2.49999999]
[1732267142284,23.776884,258.56,258.46,2.49999999]
[1732267142485,9.70230064,258.57,258.46,2.49999999]
[1732267143397,31.23597565,258.85,258.51,2.49999999]
[1732267143398,22.01989796,258.76,258.51,2.49999999]
[1732267143582,9.70230064,258.67,258.53,20.0]
[1732267143783,27.4766,258.82,258.59,2.49999999]
[1732267143996,9.70230064,258.73,258.59,22.49999999]
[1732267144780,13.7383,258.82,258.62,2.49999999]
[1732267145103,9.70230064,258.8,258.67,20.0]
[1732267146016,23.3075,258.91,258.68,2.49999999]
[1732267146201,9.70230064,258.82,258.69,2.5]
[1732267146511,9.70230064,258.82,258.7,2.49999999]
[1732267146687,15.10939914,258.82,258.7,2.49999999]
[1732267147494,15.10939914,258.8,258.7,2.49999999]
[1732267147682,15.10939914,258.82,258.7,2.49999999]
[1732267147993,23.776884,258.82,258.7,2.49999999]
[1732267148393,23.776884,258.82,258.7,4.99999999]
[1732267148601,15.10939914,258.81,258.7,2.49999999]
[1732267148788,23.776884,258.82,258.7,6.72194638]
[1732267148992,15.10939914,258.85,258.73,20.0]
[1732267149296,15.10939914,258.85,258.73,24.22194639]
[1732267149991,3.24,258.91,258.73,26.72194639]
[1732267150190,15.10939914,258.84,258.73,26.72194639]
[1732267150497,23.776884,258.83,258.74,2.5]
[1732267150810,23.776884,258.83,258.73,24.22194639]
[1732267151610,23.776884,258.83,258.74,2.49999999]
[1732267151611,15.10939914,258.82,258.74,2.49999999]
[1732267152000,15.10939914,258.86,258.76,2.49999999]
[1732267152199,3.24,258.91,258.76,2.49999999]
[1732267152200,15.10939914,258.88,258.78,2.49999999]
[1732267152597,15.10939914,258.88,258.78,22.49999999]
[1732267152998,15.10939914,258.88,258.77,24.22194639]
[1732267153313,15.10939914,258.96,258.73,20.0]
[1732267153314,15.10939914,258.84,258.73,20.0]
[1732267153718,15.10939914,258.84,258.74,2.49999999]
[1732267153927,23.776884,258.83,258.74,2.49999999]
[1732267154708,15.10939914,258.96,258.78,2.49999999]
[1732267154709,15.10939914,258.88,258.78,2.49999999]
[1732267155115,15.10939914,258.88,258.78,6.72194638]
[1732267155702,15.10939914,258.9,258.8,2.49999999]
[1732267156415,15.10939914,258.9,258.72,6.596]
[1732267156416,15.10939914,259.0,258.87,2.49999999]
[1732267156618,15.10939914,258.98,258.88,4.49639083]
[1732267156820,15.10939914,258.96,258.88,4.49639083]
[1732267158197,15.10939914,258.98,258.89,20.0]
[1732267158613,15.10939914,259.0,258.9,2.49999999]
[1732267159114,15.10939914,258.97,258.89,4.49639083]
[1732267159316,15.10939914,258.95,258.89,4.49639083]
[1732267159909,23.776884,258.94,258.89,4.49639083]
[1732267161517,15.10939914,259.09,258.89,6.99639082]
[1732267161518,15.10939914,258.97,258.89,6.99639082]
[1732267161703,15.10939914,258.99,258.9,24.49639083]
[1732267161902,15.10939914,258.95,258.9,24.49639083]
[1732267162104,15.10939914,258.92,258.85,2.49999999]
[1732267162315,15.10939914,258.92,258.85,4.49639083]
[1732267162820,23.776884,258.89,258.85,4.49639083]
[1732267163601,23.776884,258.91,258.85,4.49639083]
[1732267164197,23.776884,258.93,258.85,4.49639083]
[1732267164624,23.776884,258.91,258.85,4.49639083]
[1732267167212,23.776884,258.93,258.85,4.49639083]
[1732267167610,23.776884,258.93,258.86,20.0]
[1732267168320,23.776884,258.93,258.85,4.49639083]
[1732267168636,23.776884,258.91,258.83,22.49999999]
[1732267170024,15.10939914,258.88,258.83,20.0]
[1732267170228,23.776884,258.87,258.83,20.0]
[1732267170831,23.776884,258.89,258.83,20.0]
[1732267171042,23.776884,258.91,258.83,24.49639083]
[1732267171739,23.776884,258.89,258.83,24.49639083]
[1732267172815,23.776884,258.85,258.82,22.7652]
[1732267174022,23.776884,258.85,258.83,20.0]
[1732267174218,23.776884,258.85,258.82,16.3523]
[1732267176131,15.10939914,258.9,258.83,20.0]
[1732267176334,15.10939914,258.92,258.83,20.0]
[1732267177531,15.10939914,258.92,258.83,22.49999999]
[1732267177722,21.32619797,259.05,258.83,22.49999999]
[1732267177723,15.10939914,258.96,258.88,6.4331]
[1732267178039,13.7383,259.05,258.88,6.4331]
[1732267178040,15.10939914,258.98,258.89,22.49999999]
[1732267178237,13.7383,259.05,258.89,22.49999999]
[1732267178238,15.10939914,258.96,258.89,22.49999999]
[1732267178557,15.10939914,258.96,258.89,20.0]
[1732267179225,23.776884,258.95,258.89,22.49999999]
[1732267179628,23.776884,258.97,258.89,22.49999999]
[1732267179934,15.10939914,258.92,258.89,20.0]
[1732267180525,23.776884,258.93,258.89,20.0]
[1732267181420,15.10939914,258.96,258.89,20.0]
[1732267181628,15.10939914,258.98,258.89,20.0]
[1732267181937,15.10939914,258.96,258.89,20.0]
[1732267182138,15.10939914,258.96,258.89,22.49999999]
[1732267182538,23.776884,258.95,258.89,22.49999999]
[1732267183042,23.776884,258.97,258.89,22.49999999]
[1732267183249,23.776884,258.99,258.91,2.49999999]
[1732267183419,23.776884,258.99,258.93,20.0]
[1732267183823,15.10939914,259.02,258.93,20.0]
[1732267184127,15.10939914,259.02,258.95,2.49999999]